fUSD/lending_fUSD_20260610
["ID","MTS","AMOUNT","RATE_DAILY","PERIOD"]
[424635417,1781020809000,161.0,0.00029091,120]
[424635420,1781020846000,152.0,8.154e-05,7]
[424635419,1781020846000,1672.7,0.00030082,120]
[424635421,1781020854000,186.73,0.00030136,120]
[424635422,1781020867000,482.0,0.00030137,120]
[424635424,1781020905000,150.0,0.00011233,120]
[424635425,1781020911000,351.15279677,0.00030136,120]
[424635432,1781021019000,500.0,0.00029969,120]
[424635431,1781021019000,500.0,0.00028996,120]
[424635433,1781021087000,446.18,0.0003,120]
[424635434,1781021128000,2267.0,0.00030137,120]
[424635438,1781021149000,152.0,8.146e-05,7]
[424635439,1781021171000,150.0,8.517e-05,7]
[424635441,1781021172000,160.43392296,8.517e-05,7]
[424635440,1781021172000,52155.0,0.00030137,120]
[424635442,1781021173000,197.53842899,8.273e-05,7]
[424635443,1781021176000,294.0,0.0003,120]
[424635444,1781021270000,200.0,7.967e-05,7]
[424635447,1781021281000,1100.0,0.00030137,120]
[424635448,1781021365000,-500.0,7.201e-05,2]
[424635449,1781021365000,-121.53378495,7.462e-05,2]
[424635452,1781021383000,-150.0,7.557e-05,2]
[424635450,1781021383000,-2787.19,7.201e-05,2]
[424635451,1781021383000,-127.65621505,7.462e-05,2]
[424635453,1781021383000,-346.63600125,7.652e-05,2]
[424635454,1781021383000,-82.63271388,7.842e-05,2]
[424635455,1781021383000,-341.43438612,7.842e-05,2]
[424635456,1781021383000,-1255.62119342,7.842e-05,2]
[424635457,1781021383000,-150.0,7.92e-05,2]
[424635458,1781021383000,-1747.05935064,7.942e-05,2]
[424635459,1781021383000,-454.81184098,7.942e-05,2]
[424635491,1781021432000,-500.0,8.175e-05,2]
[424635497,1781021432000,-500.0,8.175e-05,2]
[424635493,1781021432000,-500.0,8.175e-05,2]
[424635498,1781021432000,-439.60066592,8.175e-05,2]
[424635490,1781021432000,-500.0,8.175e-05,2]
[424635486,1781021432000,-295.19978772,8.175e-05,2]
[424635496,1781021432000,-500.0,8.175e-05,2]
[424635500,1781021432000,-500.0,8.175e-05,2]
[424635485,1781021432000,-500.0,8.175e-05,2]
[424635510,1781021432000,-500.0,8.175e-05,2]
[424635512,1781021432000,-500.0,8.175e-05,2]
[424635501,1781021432000,-500.0,8.175e-05,2]
[424635504,1781021432000,-500.0,8.175e-05,2]
[424635502,1781021432000,-500.0,8.175e-05,2]
[424635499,1781021432000,-500.0,8.175e-05,2]
[424635494,1781021432000,-500.0,8.175e-05,2]
[424635487,1781021432000,-500.0,8.175e-05,2]
[424635469,1781021432000,-150.0,7.998e-05,2]
[424635480,1781021432000,-150.0,8.174e-05,2]
[424635472,1781021432000,-500.0,8.111e-05,2]
[424635467,1781021432000,-1971.57880838,7.942e-05,2]
[424635468,1781021432000,-200.0,7.967e-05,2]
[424635470,1781021432000,-2204.9595,8.076e-05,2]
[424635471,1781021432000,-150.0,8.077e-05,2]
[424635503,1781021432000,-500.0,8.175e-05,2]
[424635473,1781021432000,-500.0,8.111e-05,2]
[424635483,1781021432000,-513.51173557,8.175e-05,2]
[424635474,1781021432000,-162.06744247,8.128e-05,2]
[424635481,1781021432000,-300.0,8.174e-05,2]
[424635484,1781021432000,-256.43682364,8.175e-05,2]
[424635478,1781021432000,-160.0,8.148e-05,2]
[424635476,1781021432000,-162.06744247,8.128e-05,2]
[424635475,1781021432000,-162.06744247,8.128e-05,2]
[424635477,1781021432000,-162.06744247,8.128e-05,2]
[424635479,1781021432000,-150.0,8.155e-05,2]
[424635482,1781021432000,-175.16519384,8.175e-05,2]
[424635507,1781021432000,-500.0,8.175e-05,2]
[424635488,1781021432000,-500.0,8.175e-05,2]
[424635506,1781021432000,-500.0,8.175e-05,2]
[424635538,1781021432000,-500.0,8.175e-05,2]
[424635540,1781021432000,-500.0,8.175e-05,2]
[424635545,1781021432000,-500.0,8.175e-05,2]
[424635541,1781021432000,-500.0,8.175e-05,2]
[424635542,1781021432000,-500.0,8.175e-05,2]
[424635543,1781021432000,-500.0,8.175e-05,2]
[424635546,1781021432000,-500.0,8.175e-05,2]
[424635554,1781021432000,-500.0,8.175e-05,2]
[424635557,1781021432000,-500.0,8.175e-05,2]
[424635555,1781021432000,-500.0,8.175e-05,2]
[424635556,1781021432000,-500.0,8.175e-05,2]
[424635558,1781021432000,-500.0,8.175e-05,2]
[424635547,1781021432000,-500.0,8.175e-05,2]
[424635548,1781021432000,-500.0,8.175e-05,2]
[424635553,1781021432000,-500.0,8.175e-05,2]
[424635550,1781021432000,-500.0,8.175e-05,2]
[424635505,1781021432000,-500.0,8.175e-05,2]
[424635539,1781021432000,-500.0,8.175e-05,2]
[424635536,1781021432000,-500.0,8.175e-05,2]
[424635489,1781021432000,-500.0,8.175e-05,2]
[424635544,1781021432000,-500.0,8.175e-05,2]
[424635514,1781021432000,-500.0,8.175e-05,2]
[424635525,1781021432000,-500.0,8.175e-05,2]
[424635516,1781021432000,-500.0,8.175e-05,2]
[424635520,1781021432000,-500.0,8.175e-05,2]
[424635530,1781021432000,-192.98782422,8.175e-05,2]
[424635531,1781021432000,-500.0,8.175e-05,2]
[424635521,1781021432000,-500.0,8.175e-05,2]
[424635527,1781021432000,-500.0,8.175e-05,2]
[424635528,1781021432000,-500.0,8.175e-05,2]
[424635535,1781021432000,-500.0,8.175e-05,2]
[424635518,1781021432000,-500.0,8.175e-05,2]
[424635523,1781021432000,-500.0,8.175e-05,2]
[424635529,1781021432000,-500.0,8.175e-05,2]
[424635534,1781021432000,-500.0,8.175e-05,2]
[424635537,1781021432000,-500.0,8.175e-05,2]
[424635533,1781021432000,-500.0,8.175e-05,2]
[424635532,1781021432000,-500.0,8.175e-05,2]
[424635508,1781021432000,-500.0,8.175e-05,2]
[424635562,1781021433000,-900.63125,8.176e-05,2]
[424635567,1781021438000,-150.0,8.021e-05,2]
[424635570,1781021438000,-109019.61317219,8.176e-05,2]
[424635568,1781021438000,-150.0,8.1e-05,2]
[424635569,1781021438000,-3795.10783148,8.176e-05,2]
[424635566,1781021438000,-200.0,7.889e-05,2]
[424635578,1781021440000,-4057.09383929,8.076e-05,2]
[424635577,1781021440000,-2812.50736366,8.076e-05,2]
[424635579,1781021441000,-342.74884571,8.076e-05,2]
[424635601,1781021443000,-510.0,8.076e-05,2]
[424635600,1781021443000,-508.57086877,8.076e-05,2]
[424635599,1781021443000,-1436.979999,8.076e-05,2]
[424635598,1781021443000,-43303.12645493,8.076e-05,2]
[424635602,1781021444000,-11935.30128814,8.076e-05,2]
[424635627,1781021446000,-327.03999998,8.076e-05,2]
[424635630,1781021446000,-340143.95831145,8.176e-05,2]
[424635628,1781021446000,-30560.67694052,8.076e-05,2]
[424635629,1781021446000,-215.89329178,8.169e-05,2]
[424635632,1781021446000,-27901.92153671,8.176e-05,2]
[424635631,1781021446000,-1267.7971369,8.176e-05,2]
[424635633,1781021446000,-665.730234,8.176e-05,2]
[424635634,1781021446000,-260.23644916,8.176e-05,2]
[424635635,1781021446000,-61419.59813288,8.176e-05,2]
[424635636,1781021453000,162.90766665,0.00030137,120]
[424635637,1781021476000,157.46138819,0.00028561,120]
[424635639,1781021532000,1000.0,0.0003013,120]
[424635640,1781021560000,548.0,0.0003013,120]
[424635642,1781021609000,500.0,0.00029108,120]
[424635643,1781021609000,500.0,0.00030125,120]
[424635644,1781021629000,350.0,8.274e-05,3]
[424635646,1781021684000,150.0,0.00030137,120]
[424635649,1781021805000,1452.14,0.00030082,120]
[424635650,1781021833000,150.0,0.00011233,120]
[424635663,1781021979000,183.0554825,6.861e-05,2]
[424635662,1781021979000,227.81779625,6.861e-05,2]
[424635661,1781021979000,160.13273347,6.861e-05,2]
[424635667,1781021993000,150.0,0.00030137,120]
[424635669,1781022033000,168.0,0.00027495,120]
[424635670,1781022035000,168.0,0.0002887,120]
[424635671,1781022039000,207.22,0.0003,120]
[424635675,1781022067000,151.0,0.0003,120]
[424635676,1781022073000,151.0,0.0003,120]
[424635678,1781022077000,151.0,0.0003,120]
[424635677,1781022077000,3156.75401427,0.00028,120]
[424635679,1781022080000,350.0,8.274e-05,3]
[424635680,1781022088000,151.0,0.0003,120]
[424635681,1781022092000,151.0,0.0003,120]
[424635682,1781022096000,151.0,0.0003,120]
[424635684,1781022100000,151.0,0.0003,120]
[424635685,1781022104000,151.0,0.0003,120]
[424635686,1781022107000,151.0,0.0003,120]
[424635698,1781022185000,151.0,0.0003,120]
[424635700,1781022189000,151.0,0.0003,120]
[424635712,1781022251000,486.0,0.00030137,120]
[424635716,1781022302000,150.0,0.00030137,120]
[424635718,1781022308000,168.0,0.00029689,120]
[424635717,1781022308000,168.0,0.00028275,120]
[424635720,1781022332000,177.0,0.00026919,120]
[424635721,1781022334000,177.0,0.00028265,120]
[424635722,1781022335000,177.0,0.00029679,120]
[424635726,1781022336000,350.0,8.274e-05,3]
[424635735,1781022440000,224.5019072,0.00030137,120]
[424635736,1781022483000,403.27,6.481e-05,2]
[424635738,1781022491000,594.14,6.481e-05,2]
[424635742,1781022525000,350.0,8.274e-05,3]
[424635746,1781022526000,-236.44,6.742e-05,2]
[424635744,1781022526000,-250.0,6.646e-05,2]
[424635743,1781022526000,-769.72,6.618e-05,2]
[424635745,1781022526000,-200.0,6.673e-05,2]
[424635747,1781022526000,-150.0,6.801e-05,2]
[424635752,1781022526000,-150.0,6.875e-05,2]
[424635749,1781022526000,-178.37,6.841e-05,2]
[424635750,1781022526000,-313.07553441,6.861e-05,2]
[424635751,1781022526000,-1450.59398778,6.861e-05,2]
[424635753,1781022526000,-1563.80047781,6.895e-05,2]
[424635748,1781022526000,-150.0,6.808e-05,2]
[424635755,1781022563000,-150.0,6.943e-05,2]
[424635754,1781022563000,-1891.64952219,6.895e-05,2]
[424635757,1781022563000,-1394.65,7.006e-05,2]
[424635756,1781022563000,-830.28,6.946e-05,2]
[424635760,1781022563000,-31.95160381,7.145e-05,2]
[424635759,1781022563000,-150.0,7.078e-05,2]
[424635758,1781022563000,-150.0,7.01e-05,2]
[424635770,1781022574000,150.0,0.00011233,120]
[424635776,1781022578000,-242.0,7.215e-05,2]
[424635774,1781022578000,-3407.19783569,7.145e-05,2]
[424635773,1781022578000,-150.0,6.919e-05,2]
[424635775,1781022578000,-731.8305605,7.145e-05,2]
[424635777,1781022578000,-1000.0,7.229e-05,2]
[424635778,1781022578000,-193.26637723,7.28e-05,2]
[424635780,1781022578000,-500.0,7.283e-05,2]
[424635779,1781022578000,-250.0,7.28e-05,2]
[424635781,1781022578000,-250.0,7.34e-05,2]
[424635783,1781022578000,-1155.36691086,7.383e-05,2]
[424635782,1781022578000,-390.10089796,7.383e-05,2]
[424635788,1781022602000,-500.0,7.974e-05,2]
[424635787,1781022602000,-150.0,7.973e-05,2]
[424635789,1781022602000,-500.0,7.974e-05,2]
[424635785,1781022602000,-250.0,7.585e-05,2]
[424635784,1781022602000,-54.53219118,7.383e-05,2]
[424635786,1781022602000,-250.0,7.854e-05,2]
[424635790,1781022602000,-500.0,7.974e-05,2]
[424635798,1781022602000,-479.91371709,7.974e-05,2]
[424635792,1781022602000,-500.0,7.974e-05,2]
[424635793,1781022602000,-500.0,7.974e-05,2]
[424635794,1781022602000,-18.06089615,7.974e-05,2]
[424635796,1781022602000,-500.0,7.974e-05,2]
[424635795,1781022602000,-481.93910385,7.974e-05,2]
[424635797,1781022602000,-500.0,7.974e-05,2]
[424635791,1781022602000,-500.0,7.974e-05,2]
[424635800,1781022603000,-1050.03626639,7.974e-05,2]
[424635801,1781022603000,-1206.54596468,7.974e-05,2]
[424635799,1781022603000,-710.704,7.974e-05,2]
[424635802,1781022611000,169.0,0.00028245,120]
[424635803,1781022613000,169.0,0.00029658,120]
[424635804,1781022629000,151.0,0.0003,120]
[424635805,1781022630000,177.0,0.00026882,120]
[424635808,1781022631000,177.0,0.00028226,120]
[424635819,1781022632000,-6389.59076893,7.974e-05,2]
[424635821,1781022632000,-335703.72950793,7.975e-05,2]
[424635823,1781022632000,-4230.82512797,7.975e-05,2]
[424635820,1781022632000,-250.0,7.974e-05,2]
[424635825,1781022632000,-260.91178055,7.975e-05,2]
[424635824,1781022632000,-503.70314734,7.975e-05,2]
[424635822,1781022632000,-2868.66018996,7.975e-05,2]
[424635842,1781022633000,177.0,0.00029637,120]
[424635843,1781022634000,151.0,0.0003,120]
[424635844,1781022636000,151.0,0.0003,120]
[424635879,1781022637000,-331.87690075,7.975e-05,2]
[424635883,1781022637000,-3991.1300093,7.975e-05,2]
[424635880,1781022637000,-303.0,7.975e-05,2]
[424635881,1781022637000,-12434.448934,7.975e-05,2]
[424635894,1781022637000,-160.0,8.095e-05,2]
[424635882,1781022637000,-1125.0,7.975e-05,2]
[424635884,1781022637000,-2138246.7144022,7.975e-05,2]
[424635892,1781022637000,-170.48,8.028e-05,2]
[424635893,1781022637000,-1000.0,8.075e-05,2]
[424635889,1781022637000,-169.54969534,7.976e-05,2]
[424635891,1781022637000,-5618.69018018,8e-05,2]
[424635897,1781022637000,-1670304.07748177,8.16e-05,2]
[424635896,1781022637000,-1000.0,8.121e-05,2]
[424635895,1781022637000,-215.89329178,8.095e-05,2]
[424635890,1781022637000,-250.0,7.99e-05,2]
[424635886,1781022637000,-99357.5193,7.976e-05,2]
[424635887,1781022637000,-6550.4299,7.976e-05,2]
[424635885,1781022637000,-4179.3796,7.976e-05,2]
[424635888,1781022637000,-152.46185445,7.976e-05,2]
[424636132,1781022639000,-608.85626891,8.16e-05,2]
[424636106,1781022639000,-300.0,8.16e-05,2]
[424636033,1781022639000,-10011.052,8.16e-05,2]
[424636028,1781022639000,-7948.40555163,8.16e-05,2]
[424636025,1781022639000,-2066.15231622,8.16e-05,2]
[424636022,1781022639000,-304.75,8.16e-05,2]
[424636166,1781022640000,151.0,0.0003,120]
[424636199,1781022642000,-258.70286,8.16e-05,2]
[424636203,1781022643000,-3004.24112911,8.16e-05,2]
[424636206,1781022643000,-2876.41769459,8.16e-05,2]
[424636205,1781022643000,-698.90113327,8.16e-05,2]
[424636208,1781022643000,-6107.81770346,8.16e-05,2]
[424636209,1781022643000,-123.8756458,8.16e-05,2]
[424636210,1781022643000,-4189.94653636,8.16e-05,2]
[424636207,1781022643000,-7623.45640624,8.16e-05,2]
[424636211,1781022643000,151.0,0.0003,120]
[424636218,1781022645000,-484.0,8.16e-05,2]
[424636228,1781022645000,-1152.12807124,8.176e-05,2]
[424636227,1781022645000,-9974.72123957,8.176e-05,2]
[424636224,1781022645000,-235.56,8.173e-05,2]
[424636225,1781022645000,-1400.52537883,8.175e-05,2]
[424636226,1781022645000,-1758.20916563,8.175e-05,2]
[424636222,1781022645000,-49783.32721597,8.16e-05,2]
[424636223,1781022645000,-235.56,8.173e-05,2]
[424636221,1781022645000,-645.73362764,8.16e-05,2]
[424636220,1781022645000,-3640.0,8.16e-05,2]
[424636219,1781022645000,-7955.00000003,8.16e-05,2]
[424636231,1781022646000,151.0,0.0003,120]
[424636232,1781022646000,-418.4376827,8.176e-05,2]
[424636236,1781022648000,151.0,0.0003,120]
[424636237,1781022651000,151.0,0.0003,120]
[424636238,1781022656000,151.0,0.0003,120]
[424636239,1781022659000,151.0,0.0003,120]
[424636240,1781022687000,550.63,0.0003013,120]
[424636246,1781022725000,239.9792,0.0003,120]
[424636247,1781022728000,500.0,0.00028767,120]
[424636248,1781022729000,500.0,0.00028767,120]
[424636249,1781022730000,500.0,0.00028767,120]
[424636252,1781022731000,500.0,0.00028767,120]
[424636251,1781022731000,500.0,0.00028767,120]
[424636250,1781022731000,500.0,0.00028767,120]
[424636255,1781022732000,515.83245557,0.00028767,120]
[424636254,1781022732000,500.0,0.00028767,120]
[424636253,1781022732000,500.0,0.00028767,120]
[424636256,1781022834000,4244.38184202,0.0003013,120]
[424636257,1781022856000,2949.90742756,0.00030137,120]
[424636258,1781022857000,1000.0,0.000301,120]
[424636262,1781022906000,169.0,0.0002858,120]
[424636263,1781022907000,169.0,0.00030009,120]
[424636266,1781023045000,27739.44401174,0.00030137,120]
[424636267,1781023111000,500.0,0.00030137,120]
[424636268,1781023135000,500.0,0.00030137,120]
[424636269,1781023162000,500.0,0.00030137,120]
[424636270,1781023176000,1210.11,0.00030082,120]
[424636271,1781023369000,171.81,5.537e-05,2]
[424636272,1781023392000,25372.74264824,7.038e-05,10]
[424636273,1781023411000,150.0,0.00011233,120]
[424636281,1781023570000,151.0,0.0003,120]
[424636282,1781023607000,-503.21018292,6.968e-05,2]
[424636283,1781023611000,239.9792,0.0003,120]
[424636290,1781023734000,-150.0,6.889e-05,2]
[424636287,1781023734000,-178.37,6.653e-05,2]
[424636288,1781023734000,-200.0,6.821e-05,2]
[424636291,1781023734000,-230.0,6.957e-05,2]
[424636289,1781023734000,-1607.86,6.872e-05,2]
[424636293,1781023734000,-1037.29993832,7.038e-05,2]
[424636292,1781023734000,-266.50981708,6.968e-05,2]
[424636294,1781023734000,-562.70006168,7.038e-05,2]
[424636296,1781023734000,-150.0,7.048e-05,2]
[424636295,1781023734000,-1896.2030967,7.038e-05,2]
[424636303,1781023735000,-23.86517824,7.535e-05,2]
[424636302,1781023735000,-175.46,7.447e-05,2]
[424636301,1781023735000,-1165.52,7.35e-05,2]
[424636300,1781023735000,-250.0,7.318e-05,2]
[424636298,1781023735000,-61.13659702,7.193e-05,2]
[424636299,1781023735000,-175.30340298,7.193e-05,2]
[424636297,1781023735000,-1000.0,7.078e-05,2]
[424636308,1781023759000,-250.0,7.63e-05,2]
[424636309,1781023759000,-250.0,7.709e-05,2]
[424636311,1781023759000,-193.0,7.742e-05,2]
[424636315,1781023759000,-1327.05968305,7.773e-05,2]
[424636307,1781023759000,-1539.93482176,7.535e-05,2]
[424636312,1781023759000,-150.0,7.772e-05,2]
[424636310,1781023759000,-500.0,7.726e-05,2]
[424636314,1781023759000,-3852.64431724,7.773e-05,2]
[424636313,1781023759000,-969.70949548,7.773e-05,2]
[424636317,1781023784000,-3528.31013547,7.773e-05,2]
[424636316,1781023784000,-4033.29128359,7.773e-05,2]
[424636319,1781023809000,-3775.05640204,7.773e-05,2]
[424636318,1781023809000,-4184.52331197,7.773e-05,2]
[424636329,1781023831000,-3239.99999992,7.773e-05,2]
[424636330,1781023831000,-10734.25353234,7.773e-05,2]
[424636331,1781023831000,-1491.9875,7.773e-05,2]
[424636332,1781023831000,-1187.64040703,7.773e-05,2]
[424636335,1781023831000,-840.29675815,7.773e-05,2]
[424636333,1781023831000,-38795.72370929,7.773e-05,2]
[424636336,1781023831000,-2766.0867491,7.773e-05,2]
[424636337,1781023831000,-4870.4,7.773e-05,2]
[424636338,1781023831000,-129139.52601952,7.773e-05,2]
[424636334,1781023831000,-1356.23989523,7.773e-05,2]
[424636353,1781023837000,-4311.82689031,7.773e-05,2]
[424636354,1781023839000,-576.78713891,7.773e-05,2]
[424636356,1781023839000,-1262.88254727,7.773e-05,2]
[424636355,1781023839000,-1395.33024752,7.773e-05,2]
[424636359,1781023839000,-37014.75851236,7.773e-05,2]
[424636357,1781023839000,-1000.0,7.773e-05,2]
[424636360,1781023839000,-312.03666516,7.773e-05,2]
[424636361,1781023839000,-6120.5,7.773e-05,2]
[424636390,1781023839000,-37803.74676262,7.773e-05,2]
[424636392,1781023839000,-29918.95368,7.773e-05,2]
[424636358,1781023839000,-46771.55231606,7.773e-05,2]
[424636474,1781023840000,-37638.66842076,7.773e-05,2]
[424636472,1781023840000,-4355.21482648,7.773e-05,2]
[424636469,1781023840000,-548.7155379,7.773e-05,2]
[424636522,1781023842000,-55.91224255,7.773e-05,2]
[424636523,1781023843000,-30613.78490779,7.773e-05,2]
[424636524,1781023843000,-6167.21375265,7.773e-05,2]
[424636525,1781023843000,-2034.16013645,7.773e-05,2]
[424636529,1781023843000,-10552.66200002,7.773e-05,2]
[424636526,1781023843000,-3350.51902,7.773e-05,2]
[424636530,1781023843000,-1357.83628874,7.773e-05,2]
[424636528,1781023843000,-10449.01036473,7.773e-05,2]
[424636548,1781024029000,350.0,8.219e-05,3]
[424636558,1781024202000,1000.0,0.00029452,120]
[424636559,1781024204000,1066.21,0.00030082,120]
[424636563,1781024247000,150.0,0.00011233,120]
[424636567,1781024441000,946.1,0.00029452,120]
[424636568,1781024454000,350.0,8.219e-05,3]
[424636573,1781024667000,152.55679042,0.0003013,120]
[424636574,1781024747000,726.2,0.00030137,120]
[424636575,1781024769000,500.0,0.00030137,120]
[424636576,1781024782000,500.0,0.00030137,120]
[424636577,1781024785000,219.4,6.649e-05,2]
[424636578,1781024799000,8233.94069591,7.673e-05,5]
[424636579,1781024799000,5778.05930409,7.673e-05,5]
[424636581,1781024850000,184.61927595,6.562e-05,2]
[424636582,1781024850000,400.84170854,6.562e-05,2]
[424636583,1781024850000,186.79289707,6.562e-05,2]
[424636584,1781024850000,477.79829146,6.562e-05,2]
[424636580,1781024850000,29.94782698,6.562e-05,2]
[424636585,1781024854000,350.0,8.219e-05,3]
[424636586,1781024862000,951.61,0.0003,120]
[424636593,1781024899000,500.0,6.539e-05,2]
[424636587,1781024899000,22.20170854,6.539e-05,2]
[424636589,1781024899000,270.38090606,6.539e-05,2]
[424636590,1781024899000,200.0,6.539e-05,2]
[424636588,1781024899000,500.0,6.539e-05,2]
[424636591,1781024899000,227.81779625,6.539e-05,2]
[424636592,1781024899000,183.0554825,6.539e-05,2]
[424636594,1781024899000,500.0,6.539e-05,2]
[424636603,1781024899000,365.73480542,6.539e-05,2]
[424636597,1781024899000,227.81779625,6.539e-05,2]
[424636596,1781024899000,500.0,6.539e-05,2]
[424636598,1781024899000,286.06465649,6.539e-05,2]
[424636599,1781024899000,236.1373021,6.539e-05,2]
[424636600,1781024899000,249.34782698,6.539e-05,2]
[424636601,1781024899000,254.77589072,6.539e-05,2]
[424636602,1781024899000,204.91901105,6.539e-05,2]
[424636595,1781024899000,389.13864976,6.539e-05,2]
[424636606,1781024966000,-791.16,6.539e-05,2]
[424636607,1781024966000,-1000.0,6.681e-05,2]
[424636604,1781024966000,-1904.72442093,6.539e-05,2]
[424636605,1781024966000,-368.00374695,6.539e-05,2]
[424636608,1781024967000,-200.0,6.714e-05,2]
[424636610,1781024967000,-211.31337438,6.749e-05,2]
[424636611,1781024967000,-250.0,6.783e-05,2]
[424636612,1781024967000,-150.0,6.815e-05,2]
[424636613,1781024967000,-500.0,6.854e-05,2]
[424636614,1781024967000,-135.01369108,6.875e-05,2]
[424636609,1781024967000,-250.0,6.731e-05,2]
[424636617,1781024991000,-160.0,6.948e-05,2]
[424636615,1781024991000,-31.66630892,6.875e-05,2]
[424636616,1781024991000,-150.0,6.883e-05,2]
[424636621,1781024992000,-215.89329178,7.077e-05,2]
[424636618,1781024992000,-150.0,6.95e-05,2]
[424636620,1781024992000,-240.0,7.018e-05,2]
[424636619,1781024992000,-320.0,6.999e-05,2]
[424636622,1781024992000,-1280.0,7.382e-05,2]
[424636623,1781024992000,-250.0,7.385e-05,2]
[424636624,1781024992000,-500.0,7.589e-05,2]
[424636626,1781024992000,-373.13551638,7.672e-05,2]
[424636627,1781024992000,-180.18822996,7.672e-05,2]
[424636629,1781024992000,-150.0,7.672e-05,2]
[424636628,1781024992000,-300.0,7.672e-05,2]
[424636631,1781024992000,-1089.03351391,7.673e-05,2]
[424636630,1781024992000,-486.7026,7.673e-05,2]
[424636625,1781024992000,-300.0,7.6e-05,2]
[424636632,1781025011000,350.0,8.219e-05,3]
[424636649,1781025032000,-202.79270134,7.672e-05,2]
[424636648,1781025032000,-1047.80837624,7.672e-05,2]
[424636650,1781025032000,-342.86699056,7.672e-05,2]
[424636647,1781025032000,-371.89510263,7.672e-05,2]
[424636651,1781025032000,-258.35269468,7.672e-05,2]
[424636646,1781025032000,-352.2726,7.672e-05,2]
[424636644,1781025032000,-1047.80837624,7.672e-05,2]
[424636652,1781025032000,-243.79598966,7.672e-05,2]
[424636645,1781025032000,-323.64067361,7.672e-05,2]
[424636654,1781025032000,-1408.50855402,7.672e-05,2]
[424636658,1781025032000,-1557.63357986,7.673e-05,2]
[424636655,1781025032000,-13.77887318,7.672e-05,2]
[424636653,1781025032000,-163.20401034,7.672e-05,2]
[424636662,1781025032000,-2153.32489603,7.673e-05,2]
[424636663,1781025032000,-2034.5,7.673e-05,2]
[424636660,1781025032000,-457.24022354,7.673e-05,2]
[424636661,1781025032000,-1920.2350059,7.673e-05,2]
[424636664,1781025032000,-258.49742669,7.673e-05,2]
[424636657,1781025032000,-160009.9635318,7.673e-05,2]
[424636656,1781025032000,-236.22112682,7.672e-05,2]
[424636659,1781025032000,-361.70525655,7.673e-05,2]
[424636665,1781025032000,-1668.29176667,7.673e-05,2]
[424636694,1781025037000,-351.736,7.178e-05,2]
[424636733,1781025038000,-151.0,8.178e-05,2]
[424636729,1781025038000,-4796.081527,8.178e-05,2]
[424636752,1781025038000,-1280.0,8.203e-05,2]
[424636747,1781025038000,-151.0,8.202e-05,2]
[424636746,1781025038000,-151.0,8.202e-05,2]
[424636728,1781025038000,-3373.0,8.173e-05,2]
[424636741,1781025038000,-489.961075,8.202e-05,2]
[424636726,1781025038000,-216.7152,8.097e-05,2]
[424636725,1781025038000,-160.0,8.024e-05,2]
[424636750,1781025038000,-151.0,8.202e-05,2]
[424636721,1781025038000,-539.0,7.89e-05,2]
[424636743,1781025038000,-489.961075,8.202e-05,2]
[424636731,1781025038000,-151.0,8.178e-05,2]
[424636773,1781025038000,-500.0,8.219e-05,2]
[424636735,1781025038000,-151.0,8.202e-05,2]
[424636739,1781025038000,-489.961075,8.202e-05,2]
[424636754,1781025038000,-1000.0,8.204e-05,2]
[424636755,1781025038000,-500.0,8.219e-05,2]
[424636757,1781025038000,-500.0,8.219e-05,2]
[424636760,1781025038000,-500.0,8.219e-05,2]
[424636762,1781025038000,-500.0,8.219e-05,2]
[424636763,1781025038000,-500.0,8.219e-05,2]
[424636774,1781025038000,-500.0,8.219e-05,2]
[424636765,1781025038000,-500.0,8.219e-05,2]
[424636771,1781025038000,-500.0,8.219e-05,2]
[424636724,1781025038000,-1900.0,8e-05,2]
[424636737,1781025038000,-489.961075,8.202e-05,2]
[424636722,1781025038000,-1500.0,7.9e-05,2]
[424636701,1781025038000,-3259.0,7.753e-05,2]
[424636727,1781025038000,-237316.51759758,8.14e-05,2]
[424636695,1781025038000,-4185.714,7.178e-05,2]
[424636696,1781025038000,-2328489.57479905,7.673e-05,2]
[424636697,1781025038000,-4180.1811,7.673e-05,2]